Workbook

Sheet Tedenska prodaja
B1: TEDENSKA PRODAJNA DEJAVNOST | I1: PRODAJALEC | J1: Ime | L1: KONEC TEDNA | M1: Datum
I3: LOKACIJA | J3: Lokacija | L3: DANAŠNJI DATUM | M3: Datum
B5: DNEVI | C5: PRODAJNI ODDELEK | D5: ZUNAJ POSLOVNIH PROSTOROV | E5: OBISKI V POSLOVNIH PROSTORIH | F5: ZUNANJI KLICI | G5: ZABELEŽENI KLICI | H5: NOV TELEFON RAČUNOVODSTVA | I5: SOBE ZA GOSTE | J5: HRANA IN PIJAČA | K5: NAJEM KONFERENČNE SOBE | L5: DRUGO* | M5: VSOTA
B6: Ponedeljek | C6: 14.00 € | D6: 23.00 € | E6: 4.00 € | F6: 45.00 € | G6: 22.00 € | H6: 2.00 € | I6: 100.00 € | J6: 0.00 € | K6: 0.00 € | L6: 0.00 € | M6: =SUM(Dejavnost[[#This Row],[PRODAJNI ODDELEK]:[DRUGO*]]) -> 210.00 €
B7: Torek | C7: 23.00 € | D7: 76.00 € | E7: 10.00 € | F7: 50.00 € | G7: 54.00 € | H7: 45.00 € | I7: 80.00 € | J7: 0.00 € | K7: 0.00 € | L7: 0.00 € | M7: =SUM(Dejavnost[[#This Row],[PRODAJNI ODDELEK]:[DRUGO*]]) -> 338.00 €
B8: Sreda | C8: 4.00 € | D8: 130.00 € | E8: 11.00 € | F8: 33.00 € | G8: 67.00 € | H8: 65.00 € | I8: 400.00 € | J8: 0.00 € | K8: 0.00 € | L8: 0.00 € | M8: =SUM(Dejavnost[[#This Row],[PRODAJNI ODDELEK]:[DRUGO*]]) -> 710.00 €
B9: Četrtek | C9: 102.00 € | D9: 40.00 € | E9: 18.00 € | F9: 0.00 € | G9: 86.00 € | H9: 82.00 € | I9: 97.00 € | J9: 0.00 € | K9: 0.00 € | L9: 0.00 € | M9: =SUM(Dejavnost[[#This Row],[PRODAJNI ODDELEK]:[DRUGO*]]) -> 425.00 €
B10: Petek | C10: 33.00 € | D10: 55.00 € | E10: 22.00 € | F10: 49.00 € | G10: 143.00 € | H10: 26.00 € | I10: 50.00 € | J10: 0.00 € | K10: 0.00 € | L10: 0.00 € | M10: =SUM(Dejavnost[[#This Row],[PRODAJNI ODDELEK]:[DRUGO*]]) -> 378.00 €
B11: Sobota | C11: 0.00 € | D11: 0.00 € | E11: 0.00 € | F11: 0.00 € | G11: 0.00 € | H11: 0.00 € | I11: 0.00 € | J11: 0.00 € | K11: 0.00 € | L11: 0.00 € | M11: =SUM(Dejavnost[[#This Row],[PRODAJNI ODDELEK]:[DRUGO*]]) -> 0.00 €
B12: Nedelja | C12: 0.00 € | D12: 0.00 € | E12: 0.00 € | F12: 0.00 € | G12: 0.00 € | H12: 0.00 € | I12: 0.00 € | J12: 0.00 € | K12: 0.00 € | L12: 0.00 € | M12: =SUM(Dejavnost[[#This Row],[PRODAJNI ODDELEK]:[DRUGO*]]) -> 0.00 €
B13: Skupaj | C13: =SUBTOTAL(109,Dejavnost[PRODAJNI ODDELEK]) -> 176.00 € | D13: =SUBTOTAL(109,Dejavnost[ZUNAJ POSLOVNIH PROSTOROV]) -> 324.00 € | E13: =SUBTOTAL(109,Dejavnost[OBISKI V POSLOVNIH PROSTORIH]) -> 65.00 € | F13: =SUBTOTAL(109,Dejavnost[ZUNANJI KLICI]) -> 177.00 € | G13: =SUBTOTAL(109,Dejavnost[ZABELEŽENI KLICI]) -> 372.00 € | H13: =SUBTOTAL(109,Dejavnost[NOV TELEFON RAČUNOVODSTVA]) -> 220.00 € | I13: =SUBTOTAL(105,Dejavnost[SOBE ZA GOSTE]) -> 0.00 € | J13: =SUBTOTAL(109,Dejavnost[HRANA IN PIJAČA]) -> 0.00 € | K13: =SUBTOTAL(109,Dejavnost[NAJEM KONFERENČNE SOBE]) -> 0.00 € | L13: =SUBTOTAL(109,Dejavnost[DRUGO*]) -> 0.00 € | M13: =SUBTOTAL(109,Dejavnost[VSOTA]) -> 2,061.00 €
B15: CILJ | C15: 200.00 € | D15: 400.00 € | E15: 300.00 € | F15: 65.00 € | G15: 500.00 € | H15: 300.00 € | I15: 400.00 € | J15: 600.00 € | K15: 300.00 € | L15: 300.00 € | M15: =SUM(C15:L15) -> 3,365.00 €
B16: ODSTOPANJE | C16: =SUM(Dejavnost[[#Totals],[PRODAJNI ODDELEK]]-C15) -> -24.00 € | D16: =SUM(Dejavnost[[#Totals],[ZUNAJ POSLOVNIH PROSTOROV]]-D15) -> -76.00 € | E16: =SUM(Dejavnost[[#Totals],[OBISKI V POSLOVNIH PROSTORIH]]-E15) -> -235.00 € | F16: =SUM(Dejavnost[[#Totals],[OBISKI V POSLOVNIH PROSTORIH]]-F15) -> 0.00 € | G16: =SUM(Dejavnost[[#Totals],[ZABELEŽENI KLICI]]-G15) -> -128.00 € | H16: =SUM(Dejavnost[[#Totals],[NOV TELEFON RAČUNOVODSTVA]]-H15) -> -80.00 € | I16: =SUM(Dejavnost[[#Totals],[SOBE ZA GOSTE]]-I15) -> -400.00 € | J16: =SUM(Dejavnost[[#Totals],[HRANA IN PIJAČA]]-J15) -> -600.00 € | K16: =SUM(Dejavnost[[#Totals],[NAJEM KONFERENČNE SOBE]]-K15) -> -300.00 € | L16: =SUM(Dejavnost[[#Totals],[DRUGO*]]-L15) -> -300.00 € | M16: =SUM(C16:L16) -> -2,143.00 €
B18: *POJASNILO
B20: Odobritev
